bitfinex-derivatives/quotes_ETHF0:USTF0_20230401
["timestamp","ask_amount","ask_price","bid_price","bid_amount"]
[1680384996851,2.86707089,1820.7,1820.6,0.86185918]
[1680385006966,2.86707089,1820.7,1820.6,4.06965918]
[1680385011968,2.58354185,1820.7,1820.6,4.35710371]
[1680385012673,2.58354185,1820.7,1820.6,3.2078]
[1680385012974,1.71916433,1820.7,1820.6,4.06932561]
[1680385013471,2.58358205,1820.7,1820.6,4.06932561]
[1680385013659,1.71916433,1820.7,1820.6,4.06932561]
[1680385013860,2.58358413,1820.7,1820.6,4.06932561]
[1680385014167,1.71916433,1820.7,1820.6,4.06932561]
[1680385014374,2.58358361,1820.7,1820.6,4.06932561]
[1680385014972,1.71916433,1820.7,1820.6,4.06934767]
[1680385015274,2.58363669,1820.7,1820.6,3.2078]
[1680385015578,1.71916433,1820.7,1820.6,3.2078]
[1680385016083,2.58362447,1820.7,1820.6,3.2078]
[1680385016382,2.58362461,1820.7,1820.6,3.2078]
[1680385016983,0.90116433,1820.7,1820.6,4.06939576]
[1680385017178,2.04907089,1820.7,1820.6,4.06939576]
[1680385017387,0.90116433,1820.7,1820.6,3.2078]
[1680385017780,1.76566208,1820.7,1820.6,4.35710371]
[1680385018286,1.76566208,1820.7,1820.6,3.2078]
[1680385018482,0.90116433,1820.7,1820.6,3.2078]
[1680385018684,1.76564263,1820.7,1820.6,4.35710371]
[1680385020076,0.90116433,1820.7,1820.6,3.2078]
[1680385021082,1.76568959,1820.7,1820.6,4.35710371]
[1680385021487,1.76568959,1820.7,1820.6,3.2078]
[1680385021681,1.76568959,1820.7,1820.6,4.35710371]
[1680385021881,1.76568959,1820.7,1820.6,3.2078]
[1680385022083,1.76568959,1820.7,1820.6,4.35710371]
[1680385022985,1.76568959,1820.7,1820.6,3.2078]
[1680385030397,0.90116433,1820.7,1820.6,4.06908792]
[1680385030599,0.90116433,1820.7,1820.6,4.06908808]
[1680385031794,0.90116433,1820.7,1820.6,3.2078]
[1680385031997,0.90116433,1820.7,1820.6,4.06909991]
[1680385035702,2.04907089,1820.7,1820.6,4.06909991]
[1680385035902,0.90116433,1820.7,1820.6,4.06909991]
[1680385036295,2.04907089,1820.7,1820.6,4.06909991]
[1680385036495,0.90116433,1820.7,1820.6,4.06909991]
[1680385036993,1.76566621,1820.7,1820.6,4.35710371]
[1680385037594,1.76566621,1820.7,1820.6,3.2078]
[1680385038702,1.76564887,1820.7,1820.6,3.2078]
[1680385039405,0.90116433,1820.7,1820.6,4.06872194]
[1680385039604,0.90116433,1820.7,1820.6,4.06872926]
[1680385040002,0.90116433,1820.7,1820.6,3.2078]
[1680385040204,1.76565417,1820.7,1820.6,3.2078]
[1680385041602,1.76565417,1820.7,1820.5,1.14930371]
[1680385041817,1.76565417,1820.7,1820.6,3.2078]
[1680385043801,1.76566053,1820.7,1820.6,3.2078]
[1680385044403,0.90116433,1820.7,1820.6,3.2078]
[1680385044603,1.76566069,1820.7,1820.6,3.2078]
[1680385044995,0.90116433,1820.7,1820.6,3.2078]
[1680385045398,1.76566903,1820.7,1820.6,3.2078]
[1680385045701,0.90116433,1820.7,1820.6,3.2078]
[1680385047007,1.76568996,1820.7,1820.6,3.2078]
[1680385047306,0.90116433,1820.7,1820.6,3.2078]
[1680385051005,2.04907089,1820.7,1820.6,3.2078]
[1680385056314,2.04907089,1820.7,1820.6,4.06912365]
[1680385057003,2.86707089,1820.7,1820.6,4.06912365]
[1680385060317,2.86707089,1820.7,1820.6,3.2078]
[1680385060706,2.86707089,1820.7,1820.6,4.0691426]
[1680385103955,3.68407089,1820.7,1820.6,4.0691426]
[1680385104152,2.53616433,1820.7,1820.6,0.8613426]
[1680385104353,4.03616433,1820.7,1820.6,0.8613426]
[1680385104658,5.47682304,1820.7,1820.6,0.8613426]
[1680385105757,4.03616433,1820.7,1820.6,0.8613426]
[1680385107054,3.21816433,1820.7,1820.6,0.8613426]
[1680385107561,3.21816433,1820.7,1820.6,1.43561125]
[1680385109462,4.37100842,1820.7,1820.6,1.43561125]
[1680385109856,2.87100842,1820.7,1820.6,1.43561125]
[1680385112464,1.5,1820.6,1820.5,0.57426865]
[1680385112665,5.27113899,1820.6,1820.5,0.57426865]
[1680385113068,1.5,1820.5,1820.4,1.43561125]
[1680385113368,4.29689845,1820.5,1820.4,0.8613426]
[1680385113669,4.29689845,1820.5,1820.4,0.5740499]
[1680385114164,4.38621099,1820.5,1820.4,0.57135178]
[1680385114867,4.6744098,1820.5,1820.2,5.5691426]
[1680385115070,1.6842988,1820.3,1820.2,5.5691426]
[1680385115265,1.6842988,1820.3,1820.2,4.0691426]
[1680385115666,1.39589941,1820.3,1820.2,4.0691426]
[1680385115965,2.26019821,1820.3,1820.2,4.0691426]
[1680385116169,1.6842988,1820.3,1820.2,4.0691426]
[1680385117170,0.817,1820.2,1820.1,0.8613426]
[1680385117469,2.21590376,1820.2,1820.1,0.8613426]
[1680385117668,1.64,1820.2,1820.1,0.8613426]
[1680385118171,2.21590376,1820.2,1820.1,0.8613426]
[1680385119462,1.64,1820.2,1820.1,0.8613426]
[1680385119665,1.64,1820.2,1820.0,4.0691426]
[1680385119874,0.818,1820.1,1820.0,4.0691426]
[1680385120168,0.818,1820.1,1820.0,3.2078]
[1680385121371,0.818,1820.1,1820.0,4.06748615]
[1680385129180,0.90462228,1820.1,1820.0,4.06748615]
[1680385143488,0.08662228,1820.1,1820.0,4.06748615]
[1680385144389,0.05855357,1820.1,1820.0,4.06748615]
[1680385147483,0.05855357,1820.1,1820.0,3.2078]
[1680385148589,0.05855357,1820.1,1820.0,4.35710371]
[1680385149288,0.05855357,1820.1,1820.0,3.2078]
[1680385149485,0.05855357,1820.1,1820.0,4.35710371]
[1680385151194,0.05855357,1820.1,1820.0,4.85710371]
[1680385153493,0.05855357,1820.1,1820.0,5.53834926]
[1680385155499,0.05855357,1820.1,1820.0,4.38904555]
[1680385156595,0.05855357,1820.1,1820.0,5.82644846]
[1680385157589,2.26320256,1820.3,1820.0,4.38904555]
[1680385157793,2.26320256,1820.3,1820.2,4.35640147]
[1680385157996,1.39890376,1820.3,1820.2,4.35640147]
[1680385158994,1.45519429,1820.3,1820.2,5.03760242]
[1680385160801,1.45519429,1820.3,1820.2,3.88900095]
[1680385161503,1.45519429,1820.3,1820.2,5.03727924]
[1680385161896,0.63219429,1820.3,1820.2,5.03727924]
[1680385162196,0.05629053,1820.3,1820.2,5.32475279]
[1680385164404,2.26120256,1820.5,1820.2,5.32475279]
[1680385164594,2.26120256,1820.5,1820.4,4.0686892]
[1680385165293,1.39690376,1820.5,1820.4,4.0686892]
[1680385167098,1.39190376,1820.5,1820.4,4.0686892]
[1680385173006,0.816,1820.5,1820.4,4.0686892]
[1680385177009,1.39590376,1820.6,1820.4,4.0686892]
[1680385197336,2.26020256,1820.6,1820.4,4.0686892]
[1680385199337,0.57590376,1820.5,1820.4,3.2078]
[1680385200442,0.57590376,1820.5,1820.4,4.35565227]
[1680385200735,0.57590376,1820.5,1820.4,4.06857617]
[1680385201237,0.57590376,1820.5,1820.4,3.2078]
[1680385201426,0.57590376,1820.5,1820.4,4.35565227]
[1680385201627,0.57590376,1820.5,1820.4,3.2078]
[1680385203441,1.44020256,1820.5,1820.4,4.35565227]
[1680385204833,1.44020256,1820.5,1820.4,1.14785227]
[1680385205030,1.44020256,1820.5,1820.4,4.35565227]
[1680385205437,0.8642988,1820.5,1820.4,4.35565227]
[1680385207144,1.6872988,1820.5,1820.4,4.35565227]
[1680385213749,1.6872988,1820.5,1820.4,5.03679836]
[1680385217049,0.8642988,1820.5,1820.4,5.03679836]
[1680385217949,0.8642988,1820.5,1820.4,5.03679969]
[1680385221148,0.8642988,1820.5,1820.4,4.35565227]
[1680385228755,0.8642988,1820.5,1820.4,5.03679085]
[1680385230555,1.44072871,1820.5,1820.4,3.88893858]
[1680385230953,0.8642988,1820.5,1820.4,5.03771594]
[1680385236855,0.8642988,1820.5,1820.4,6.68171594]
[1680385237060,0.57639258,1820.6,1820.5,1.5]
[1680385237255,0.57639258,1820.6,1820.5,4.43975581]
[1680385239258,0.57639258,1820.6,1820.5,3.00413858]
[1680385240159,1.44097915,1820.7,1820.5,4.15182231]
[1680385240358,1.44097915,1820.7,1820.6,4.0278]
[1680385240657,0.57639258,1820.7,1820.6,5.17548373]
[1680385241257,0.86458657,1820.7,1820.6,4.0278]
[1680385241455,0.86458657,1820.7,1820.6,4.88861258]
[1680385241956,0.86458657,1820.7,1820.6,4.8885881]
[1680385242255,1.44051333,1820.7,1820.6,4.8885881]
[1680385242459,0.86458657,1820.7,1820.6,4.8885881]
[1680385244361,0.57588788,1820.7,1820.6,4.0278]
[1680385244550,0.57588788,1820.7,1820.6,4.88835649]
[1680385245061,1.44047445,1820.7,1820.6,4.88835649]
[1680385245560,0.86458657,1820.7,1820.6,4.88835649]
[1680385245762,1.44044817,1820.7,1820.6,4.88835649]
[1680385246061,1.4404309,1820.7,1820.6,4.88835649]
[1680385246455,1.44042847,1820.7,1820.6,4.88835649]
[1680385246656,0.5758419,1820.7,1820.6,4.88835649]
[1680385246859,0.86458657,1820.7,1820.6,4.88835649]
[1680385247161,0.92394061,1820.7,1820.6,4.06835649]
[1680385247659,3.66375244,1820.7,1820.5,0.57388782]
[1680385247858,3.143,1820.6,1820.5,0.57388782]
[1680385248362,2.7953984,1820.6,1820.5,0.57388782]
[1680385248662,1.643,1820.6,1820.5,0.57388782]
[1680385248859,2.7953984,1820.6,1820.5,0.57388782]
[1680385249959,1.643,1820.6,1820.5,0.57388782]
[1680385256563,1.68674475,1820.6,1820.5,0.57388782]
[1680385256970,1.73224341,1820.6,1820.4,4.35548373]
[1680385257269,1.39582332,1820.5,1820.4,3.2078]
[1680385258062,0.57582332,1820.5,1820.4,4.35548373]
[1680385258269,0.57582332,1820.5,1820.4,3.2078]
[1680385259771,1.39882332,1820.5,1820.4,3.2078]
[1680385271682,1.44538391,1820.5,1820.4,3.2078]
[1680385279991,2.30912866,1820.5,1820.4,3.2078]
[1680385280187,1.44538391,1820.5,1820.4,3.2078]
[1680385284180,2.30912866,1820.5,1820.4,3.2078]
[1680385286186,1.73330534,1820.5,1820.4,3.2078]
[1680385286593,1.44550322,1820.5,1820.4,3.2078]
[1680385288185,2.30924797,1820.5,1820.4,3.2078]
[1680385288790,1.44550322,1820.5,1820.4,3.2078]
[1680385289088,1.44550322,1820.5,1820.4,4.35548373]
[1680385289286,2.30924797,1820.5,1820.4,3.2078]
[1680385289690,1.44550322,1820.5,1820.4,3.2078]
[1680385289990,2.30924797,1820.5,1820.4,3.2078]
[1680385290190,1.73330534,1820.5,1820.4,4.35548373]
[1680385292190,1.73330534,1820.5,1820.4,5.0366084]
[1680385292390,2.30973093,1820.5,1820.4,3.88892467]
[1680385292990,2.3097273,1820.5,1820.4,3.88892467]
[1680385293598,2.3097273,1820.5,1820.4,5.03757455]
[1680385293898,1.73330534,1820.5,1820.4,4.35644988]
[1680385294490,1.73330534,1820.5,1820.4,5.03758512]
[1680385296300,1.73330534,1820.5,1820.4,5.03758484]
[1680385297900,1.73330534,1820.5,1820.4,4.35644988]
[1680385309702,1.73330534,1820.5,1820.4,5.03758402]
[1680385309899,1.73330534,1820.5,1820.4,4.35644988]
[1680385310205,1.73030534,1820.5,1820.4,4.35644988]
[1680385317110,0.91030534,1820.5,1820.4,4.35644988]
[1680385322916,0.62295272,1820.5,1820.4,5.03768855]
[1680385323214,0.62295272,1820.5,1820.4,3.88894632]
[1680385324713,0.62295272,1820.5,1820.4,5.03756419]
[1680385324914,0.62295272,1820.5,1820.4,3.88894632]
[1680385325114,0.62295272,1820.5,1820.4,5.32456355]
[1680385325513,0.62295272,1820.5,1820.4,3.88894632]
[1680385328513,0.62295272,1820.5,1820.4,5.32456355]
[1680385328719,0.62295272,1820.5,1820.4,3.88894632]
[1680385329119,0.62295272,1820.5,1820.4,5.32456355]
[1680385329318,0.62295272,1820.5,1820.4,3.88894632]
[1680385341735,0.04656059,1820.5,1820.4,5.32456355]
[1680385343439,0.04656059,1820.5,1820.4,3.88894632]
[1680385353552,0.62295272,1820.5,1820.4,3.88894632]
[1680385355447,0.62295272,1820.5,1820.4,5.32456355]
[1680385360151,0.04656059,1820.5,1820.4,5.32456355]
[1680385360352,0.62295272,1820.5,1820.4,5.32456355]
[1680385360552,0.04656059,1820.5,1820.4,5.32456355]
[1680385361554,0.62295272,1820.5,1820.4,5.32456355]
[1680385366755,0.03921451,1820.5,1820.4,12.61495983]
[1680385367460,0.03921451,1820.5,1820.4,3.88894632]
[1680385368260,0.03921451,1820.5,1820.4,5.32480761]
[1680385368852,0.03921451,1820.5,1820.4,3.88894632]
[1680385369662,0.03921451,1820.5,1820.4,5.32471744]
[1680385373460,0.57639213,1820.6,1820.5,1.5]
[1680385373659,0.57639213,1820.6,1820.5,4.43991744]
[1680385377070,0.57639213,1820.6,1820.5,4.43791744]
[1680385378570,0.57639213,1820.6,1820.5,7.64571744]
[1680385379467,0.57639213,1820.6,1820.5,6.20994632]
[1680385380860,0.57639213,1820.6,1820.5,7.3578977]
[1680385381271,0.57639213,1820.6,1820.5,7.35789631]
[1680385381471,0.57639213,1820.6,1820.5,6.20994632]
[1680385381774,0.57639213,1820.6,1820.5,5.85789894]
[1680385385175,0.57639213,1820.6,1820.5,6.14571744]
[1680385386669,1.44013688,1820.7,1820.5,6.14571744]
[1680385386974,1.44013688,1820.7,1820.6,1.14778154]
[1680385387177,1.44013688,1820.7,1820.6,2.14778154]
[1680385389579,1.44013688,1820.7,1820.6,1.14778154]
[1680385391481,0.57639213,1820.7,1820.6,1.14778154]
[1680385407086,1.39939213,1820.7,1820.6,1.14778154]
[1680385409385,1.39939213,1820.7,1820.6,1.82883946]
[1680385411381,2.26313688,1820.7,1820.6,1.82883946]
[1680385414493,1.68674475,1820.7,1820.6,1.82883946]
[1680385416994,0.86374475,1820.7,1820.6,1.82883946]
[1680385424297,1.44013128,1820.7,1820.6,0.68105792]
[1680385424799,1.44013128,1820.7,1820.6,1.82901479]
[1680385425501,1.44014362,1820.7,1820.6,0.68105792]
[1680385425890,0.86374475,1820.7,1820.6,0.68105792]
[1680385426694,1.44014357,1820.7,1820.6,0.68105792]
[1680385430600,0.86374475,1820.7,1820.6,0.68105792]
[1680385430795,0.86374475,1820.7,1820.6,3.88885792]
[1680385433698,0.86374475,1820.7,1820.6,5.03701018]
[1680385436595,0.86374475,1820.7,1820.6,3.88885792]
[1680385443110,0.85728561,1820.7,1820.6,3.88885792]
[1680385449205,0.85728561,1820.7,1820.6,3.88222376]
[1680385450321,0.823,1820.8,1820.4,5.5288]
[1680385450614,1.97595794,1820.8,1820.7,0.8612212]
[1680385451215,2.641,1820.8,1820.7,0.8612212]
[1680385451418,4.80458033,1820.8,1820.7,0.574197]
[1680385451718,3.30567868,1820.8,1820.7,0.574197]
[1680385451911,1.86458142,1820.8,1820.7,0.574197]
[1680385452414,3.01723589,1820.8,1820.7,0.8612212]
[1680385452719,2.01723589,1820.8,1820.7,0.8612212]
[1680385452918,2.01723589,1820.8,1820.7,4.0690212]
[1680385453112,2.01723589,1820.8,1820.7,0.8612212]
[1680385453413,2.01723589,1820.8,1820.7,1.43519523]
[1680385453719,2.01723589,1820.8,1820.7,0.57397403]
[1680385455313,2.30567868,1820.8,1820.7,0.57397403]
[1680385456011,0.823,1820.7,1820.6,1.43519523]
[1680385456217,2.79434333,1820.7,1820.6,1.43519523]
[1680385456417,2.83530439,1820.7,1820.6,1.43519523]
[1680385456615,2.83530439,1820.7,1820.6,0.57397403]
[1680385457220,2.83530439,1820.7,1820.6,1.43519523]
[1680385457523,2.83530439,1820.7,1820.6,0.57397403]
[1680385460825,2.01230439,1820.7,1820.6,0.57397403]
[1680385464829,0.85996106,1820.7,1820.6,0.57397403]
[1680385465327,2.01230439,1820.7,1820.6,0.57397403]
[1680385465933,0.85996106,1820.7,1820.6,0.57397403]
[1680385466435,2.01230439,1820.7,1820.6,0.57397403]
[1680385467224,0.85996106,1820.7,1820.6,0.57397403]
[1680385467637,2.01230439,1820.7,1820.6,0.57397403]
[1680385467934,0.85996106,1820.7,1820.6,0.57397403]
[1680385470640,1.68296106,1820.7,1820.6,0.57397403]
[1680385482955,1.68096106,1820.7,1820.6,0.57397403]
[1680385484744,2.83330439,1820.7,1820.6,0.57397403]
[1680385490656,2.83330439,1820.7,1820.5,4.64299523]
[1680385490857,0.819,1820.6,1820.5,3.78177403]
[1680385491154,1.86009514,1820.6,1820.5,3.78177403]
[1680385491756,3.01243847,1820.6,1820.5,4.64299523]
[1680385492264,1.86009514,1820.6,1820.5,4.64299523]
[1680385492452,0.86009514,1820.6,1820.5,4.64299523]
[1680385492651,0.86009514,1820.6,1820.5,4.0690212]
[1680385494757,2.01243847,1820.6,1820.5,4.0690212]
[1680385494958,0.86009514,1820.6,1820.5,4.0690212]
[1680385495661,2.01243847,1820.6,1820.5,4.0690212]
[1680385495959,0.86009514,1820.6,1820.5,4.0690212]
[1680385496859,2.01243847,1820.6,1820.5,4.0690212]
[1680385513575,2.01243847,1820.6,1820.5,4.64296891]
[1680385515677,2.01243847,1820.6,1820.5,3.78174771]
[1680385516979,2.83543847,1820.6,1820.5,3.78174771]
[1680385527692,2.83543847,1820.6,1820.5,4.64296891]
[1680385528286,2.83543847,1820.6,1820.5,4.0690212]
[1680385529999,1.68309514,1820.6,1820.5,4.0690212]
[1680385530201,2.83543847,1820.6,1820.5,4.0690212]
[1680385531303,1.68309514,1820.6,1820.5,4.0690212]
[1680385531801,2.83543847,1820.6,1820.5,4.0690212]
[1680385536994,2.01643847,1820.6,1820.5,4.0690212]
[1680385542813,2.01643847,1820.6,1820.5,0.8612212]
[1680385543316,2.01643847,1820.6,1820.5,4.0690212]
[1680385565730,0.04109514,1820.6,1820.5,3.2078]
[1680385565929,0.86455624,1820.7,1820.5,5.85714174]
[1680385566121,0.57633978,1820.6,1820.5,5.46576731]
[1680385566425,0.57633978,1820.6,1820.5,6.14379243]
[1680385567023,0.57633978,1820.6,1820.5,5.32079243]
[1680385567541,0.57633978,1820.7,1820.5,5.32079243]
[1680385567829,0.57633978,1820.7,1820.6,2.14702009]
[1680385571135,1.39433978,1820.8,1820.6,2.82431634]
[1680385571428,1.39433978,1820.8,1820.7,4.06758337]
[1680385577134,1.39833978,1820.8,1820.7,4.06758337]
[1680385577331,1.39833978,1820.8,1820.7,4.64041198]
[1680385579336,1.39833978,1820.8,1820.7,3.78062861]
[1680385580330,0.822,1820.8,1820.7,4.64041198]
[1680385580535,1.39833978,1820.8,1820.7,4.64041198]
[1680385580837,0.822,1820.8,1820.7,4.64041198]
[1680385581439,0.822,1820.8,1820.7,4.64027874]
[1680385584943,0.822,1820.8,1820.7,4.06758337]
[1680385586839,0.822,1820.8,1820.7,4.06656031]
[1680385587043,0.57633978,1820.9,1820.7,4.06656031]
[1680385587244,0.57633978,1820.9,1820.8,0.57253445]
[1680385587442,2.25989602,1821.0,1820.8,1.57253445]
[1680385587642,1.68355624,1821.0,1820.9,3.2078]
[1680385591443,2.25868107,1821.0,1820.9,3.2078]
[1680385591642,1.68355624,1821.0,1820.9,3.2078]
[1680385594542,2.2587072,1821.0,1820.9,3.2078]
[1680385594750,1.68355624,1821.0,1820.9,3.2078]
[1680385594941,2.25870758,1821.0,1820.9,3.2078]
[1680385595141,1.68355624,1821.0,1820.9,3.2078]
[1680385595447,2.25870333,1821.0,1820.9,3.2078]
[1680385595648,1.68355624,1821.0,1820.9,3.2078]
[1680385602140,1.68355624,1821.0,1820.8,0.57253445]
[1680385602353,0.57540405,1820.9,1820.8,0.57253445]
[1680385602547,0.57540405,1820.9,1820.8,3.78033445]
[1680385604253,0.57540405,1820.9,1820.8,4.63909476]
[1680385604453,0.57540405,1820.9,1820.8,4.06656031]
[1680385605253,0.57540405,1820.9,1820.8,4.63941071]
[1680385605443,0.86455624,1820.9,1820.8,3.7806504]
[1680385605643,0.57556864,1820.9,1820.8,4.63941071]
[1680385605851,0.57557255,1820.9,1820.8,3.7806504]
[1680385606052,0.86455624,1820.9,1820.8,3.7806504]
[1680385606254,0.57558204,1820.9,1820.8,4.63941071]
[1680385609054,0.86455624,1820.9,1820.8,4.06656031]
[1680385616063,0.86455624,1820.9,1820.8,4.06800061]
[1680385616466,0.86455624,1820.9,1820.8,3.2078]
[1680385616667,0.86455624,1820.9,1820.8,4.06800673]
[1680385616866,0.86455624,1820.9,1820.8,3.2078]
[1680385617670,0.86455624,1820.9,1820.8,4.35482009]
[1680385619566,0.57615703,1820.9,1820.8,5.03201922]
[1680385619765,0.86455624,1820.9,1820.8,4.35482009]
[1680385619967,1.4407062,1820.9,1820.8,5.03192682]
[1680385620363,0.86455624,1820.9,1820.8,4.35482009]
[1680385628872,0.86455624,1820.9,1820.8,3.2078]
[1680385629174,0.86455624,1820.9,1820.8,4.35482009]
[1680385629377,1.97134333,1821.0,1820.8,4.35482009]
[1680385629575,0.86453215,1820.9,1820.8,4.35482009]
[1680385630178,1.97134333,1821.0,1820.8,4.35482009]
[1680385630378,1.97134333,1821.0,1820.9,0.86052497]
[1680385630578,1.97134333,1821.0,1820.9,0.85794804]
[1680385633074,0.819,1821.0,1820.9,0.85794804]
[1680385633882,1.97178454,1821.0,1820.9,0.85794804]
[1680385634081,0.819,1821.0,1820.9,0.85794804]
[1680385634482,1.97178847,1821.0,1820.9,0.85794804]
[1680385635478,0.819,1821.0,1820.9,0.85794804]
[1680385635878,1.97178067,1821.0,1820.9,0.85794804]
[1680385648293,1.97178994,1821.0,1820.9,0.85794804]
[1680385653499,0.819,1821.0,1820.9,0.85794804]
[1680385654599,1.97181346,1821.0,1820.9,0.85794804]
[1680385655797,1.97182704,1821.0,1820.9,0.85794804]
[1680385656003,0.819,1821.0,1820.9,0.85794804]
[1680385656799,1.97179858,1821.0,1820.9,0.85794804]
[1680385674510,0.819,1821.0,1820.9,0.85794804]
[1680385675110,1.97186217,1821.0,1820.9,0.85794804]
[1680385681815,1.97486217,1821.0,1820.9,0.85794804]
[1680385682917,1.97486217,1821.0,1820.9,4.06574804]
[1680385683417,1.97486541,1821.0,1820.9,4.06574804]
[1680385688824,1.97486541,1821.0,1820.9,0.85794804]
[1680385689019,1.97486541,1821.0,1820.9,4.06574804]
[1680385737561,0.822,1821.0,1820.9,4.06574804]
[1680385740473,2.26309726,1821.0,1820.9,1.43177913]
[1680385740772,2.26309726,1821.0,1820.9,0.57383109]
[1680385740974,0.822,1821.0,1820.9,4.06574804]
[1680385741175,2.26309726,1821.0,1820.9,4.6396182]
[1680385743477,2.26309726,1821.0,1820.9,3.78167016]
[1680385745281,1.97482968,1821.0,1820.9,0.85794804]
[1680385745477,1.97482968,1821.0,1820.9,4.06574804]
[1680385745781,0.822,1821.0,1820.9,0.85794804]
[1680385745977,1.9747743,1821.0,1820.9,4.06574804]
[1680385746482,0.822,1821.0,1820.9,1.43186775]
[1680385746679,1.97480047,1821.0,1820.9,4.06574804]
[1680385746876,2.26309726,1821.0,1820.9,1.43186906]
[1680385747082,1.97477144,1821.0,1820.9,0.85794804]
[1680385747286,2.26309726,1821.0,1820.9,0.5739117]
[1680385747682,2.26309726,1821.0,1820.9,3.7817117]
[1680385747893,2.26309726,1821.0,1820.9,0.5739117]
[1680385748090,2.94410882,1821.0,1820.9,0.5739117]
[1680385748293,2.26309726,1821.0,1820.9,0.5739117]
[1680385748592,2.94414044,1821.0,1820.9,0.5739117]
[1680385748988,3.76814044,1821.0,1820.8,1.43185974]
[1680385749291,3.76814044,1821.0,1820.6,4.35482009]
[1680385749292,5.58316244,1820.9,1820.7,0.5739117]
[1680385749594,2.97619939,1820.8,1820.7,0.5739117]
[1680385750491,0.824,1820.7,1820.6,3.7817117]
[1680385750694,2.79624858,1820.7,1820.6,3.7817117]
[1680385751393,1.644,1820.7,1820.6,3.7817117]
[1680385751796,2.79624858,1820.7,1820.6,3.7817117]
[1680385752698,2.79624858,1820.7,1820.6,0.5739117]
[1680385753199,2.79624858,1820.7,1820.5,1.43185974]
[1680385753498,2.25706675,1820.6,1820.5,0.5739117]
[1680385754096,2.25706675,1820.6,1820.5,0.56724904]
[1680385755499,1.3936267,1820.6,1820.5,0.56724904]
[1680385758993,1.3936267,1820.6,1820.4,4.06574804]
[1680385759196,0.816,1820.5,1820.4,4.06574804]
[1680385759399,0.816,1820.5,1820.4,3.2078]
[1680385764102,0.84852771,1820.5,1820.4,3.2078]
[1680385764305,0.816,1820.5,1820.4,3.2078]
[1680385768300,4.32044005,1820.5,1820.2,3.2078]
[1680385768494,2.633,1820.3,1820.1,3.2078]
[1680385768697,1.642,1820.2,1820.1,3.2078]
[1680385768900,1.642,1820.2,1820.0,1.35794804]
[1680385769102,0.824,1820.1,1820.0,1.35794804]
[1680385769304,0.824,1820.1,1820.0,1.5]
[1680385770306,0.824,1820.1,1820.0,0.5]
[1680385771103,1.644,1820.1,1820.0,0.5]
[1680385783015,2.644,1820.1,1820.0,0.5]
[1680385783517,2.721825,1820.1,1820.0,0.5]
[1680385786309,1.0,1820.0,1819.7,1.0]
[1680385786514,1.638,1819.8,1819.6,1.0]
[1680385786721,1.816,1819.9,1819.6,1.0]
[1680385786722,1.648,1819.7,1819.6,1.0]
[1680385786912,1.648,1819.7,1819.5,5.06574804]
[1680385787115,0.824,1819.7,1819.6,1.0]
[1680385787315,1.648,1819.7,1819.6,1.0]
[1680385788121,1.648,1819.7,1819.5,4.2078]
[1680385788319,0.824,1819.6,1819.5,4.2078]
[1680385791426,0.824,1819.6,1819.5,5.06574804]
[1680385797220,0.824,1819.6,1819.5,4.2078]
[1680385798118,0.90188142,1819.6,1819.5,4.2078]
[1680385809331,0.90188142,1819.6,1819.5,5.06574804]
[1680385813334,0.90188142,1819.6,1819.5,4.2078]
[1680385814628,0.90188142,1819.6,1819.5,5.35482009]
[1680385814832,0.90188142,1819.6,1819.5,4.2078]
[1680385815337,0.90188142,1819.6,1819.5,5.35482009]
[1680385819343,0.90188142,1819.6,1819.5,4.35482009]
[1680385825338,0.90188142,1819.6,1819.5,4.99644473]
[1680385831643,0.90188142,1819.6,1819.5,3.84942464]
[1680385831845,0.90188142,1819.6,1819.5,4.99926962]
[1680385832045,0.90188142,1819.6,1819.5,3.84942464]
[1680385833344,0.90188142,1819.6,1819.5,4.99929398]
[1680385833540,0.90188142,1819.6,1819.5,3.84942464]
[1680385835550,0.90188142,1819.6,1819.5,5.28439195]
[1680385835747,0.90188142,1819.6,1819.5,3.84942464]
[1680385836347,0.90188142,1819.6,1819.5,5.28439195]
[1680385836549,0.90188142,1819.6,1819.5,3.84942464]
[1680385836749,0.90188142,1819.6,1819.5,5.28439195]
[1680385837443,1.47687471,1819.6,1819.5,5.28439195]
[1680385843855,1.76532147,1819.6,1819.5,5.00037078]
[1680385845461,1.76532147,1819.6,1819.5,3.84942464]
[1680385846863,1.76532147,1819.6,1819.5,5.00026871]
[1680385847363,1.76532147,1819.6,1819.5,3.84942464]
[1680385848366,1.76532147,1819.6,1819.5,5.00027312]
[1680385849474,1.47853967,1819.6,1819.5,5.28439195]
[1680385850870,1.47853967,1819.6,1819.5,3.84942464]
[1680385851171,1.47853967,1819.6,1819.5,5.28439195]
[1680385851366,1.47853967,1819.6,1819.5,3.84942464]
[1680385851674,2.34197972,1819.6,1819.5,3.84942464]
[1680385852769,1.47853967,1819.6,1819.5,3.84942464]
[1680385853272,2.34197972,1819.6,1819.5,3.84942464]
[1680385853477,1.47853967,1819.6,1819.5,3.84942464]
[1680385855275,2.34197972,1819.6,1819.5,3.84942464]
[1680385855671,2.33575385,1819.6,1819.5,5.00017586]
[1680385857678,2.33575385,1819.6,1819.5,3.84942464]
[1680385858873,2.33575385,1819.6,1819.5,5.00013402]
[1680385859075,2.33575385,1819.6,1819.5,3.84942464]
[1680385859285,2.33575385,1819.6,1819.5,5.00013988]
[1680385860279,1.7590956,1819.6,1819.5,5.00013988]
[1680385860679,2.33572357,1819.6,1819.5,5.00013988]
[1680385861780,1.7590956,1819.6,1819.5,5.00013988]
[1680385861976,2.33572306,1819.6,1819.5,5.00013988]
[1680385866682,1.47228301,1819.6,1819.5,3.84942464]
[1680385867282,1.47228301,1819.6,1819.5,5.00062476]
[1680385867581,1.47228301,1819.6,1819.5,3.84942464]
[1680385873989,1.7590956,1819.6,1819.5,5.00098636]
[1680385874289,2.33571692,1819.6,1819.5,5.00098636]
[1680385875188,1.7590956,1819.6,1819.5,5.00098636]
[1680385875388,2.3357186,1819.6,1819.5,5.00098636]
[1680385878793,2.3357186,1819.6,1819.5,3.84942464]
[1680385880694,1.7590956,1819.6,1819.5,3.84942464]
[1680385881093,2.33575292,1819.6,1819.5,3.84942464]
[1680385882197,1.7590956,1819.6,1819.5,3.84942464]
[1680385884794,1.7590956,1819.6,1819.5,5.28439195]
[1680385886095,1.7590956,1819.6,1819.5,3.84942464]
[1680385886299,1.7590956,1819.6,1819.5,5.28439195]
[1680385890203,1.7590956,1819.6,1819.5,3.84942464]
[1680385890399,1.7590956,1819.6,1819.5,5.28439195]
[1680385908812,1.7590956,1819.6,1819.5,3.84942464]
[1680385909011,1.7590956,1819.6,1819.5,5.28439195]
[1680385910820,1.7590956,1819.6,1819.5,3.84242763]
[1680385914734,1.7590956,1819.6,1819.5,5.27739494]
[1680385915231,1.7590956,1819.6,1819.5,3.84242763]
[1680385921040,1.7590956,1819.6,1819.5,4.9952369]